bitfinex-derivatives/quotes_SOLF0:USTF0_20241206
["timestamp","ask_amount","ask_price","bid_price","bid_amount"]
[1733496473475,16.24102959,236.63,236.43,7.125]
[1733496473870,0.63292999,236.62,236.43,7.125]
[1733496474071,16.24102959,236.59,236.43,7.125]
[1733496475373,16.24102959,236.63,236.43,7.125]
[1733496475573,8.54883921,236.62,236.44,3.02]
[1733496475772,0.63295348,236.61,236.44,3.02]
[1733496475975,16.24102959,236.63,236.45,3.02]
[1733496476277,8.54866341,236.62,236.45,3.02]
[1733496476477,16.24102959,236.63,236.45,3.02]
[1733496477282,19.26102959,236.67,236.45,3.02]
[1733496477579,8.54747719,236.66,236.46,16.24102959]
[1733496477781,19.26102959,236.67,236.46,16.24102959]
[1733496477782,8.54747719,236.65,236.46,16.24102959]
[1733496477983,0.63286631,236.64,236.46,16.24102959]
[1733496478184,19.26102959,236.67,236.45,3.02]
[1733496478380,19.64809049,236.66,236.45,3.02]
[1733496478687,19.64776796,236.65,236.45,3.02]
[1733496478887,19.64820167,236.64,236.45,3.02]
[1733496479083,8.55017967,236.63,236.45,3.02]
[1733496479283,8.55382204,236.62,236.45,3.02]
[1733496479482,8.55437175,236.61,236.45,3.02]
[1733496479681,16.24102959,236.63,236.45,3.02]
[1733496479887,7.9214767,236.62,236.45,3.02]
[1733496480188,8.5544273,236.61,236.46,3.02]
[1733496480485,7.9214767,236.6,236.46,3.02]
[1733496480685,16.24102959,236.63,236.46,3.02]
[1733496480885,19.67047916,236.62,236.46,3.02]
[1733496481085,8.55969967,236.61,236.46,3.02]
[1733496481285,7.92674669,236.6,236.46,3.02]
[1733496481487,16.24102959,236.63,236.46,3.02]
[1733496481783,16.24102959,236.63,236.45,3.02]
[1733496481784,19.69227363,236.62,236.45,3.02]
[1733496482090,19.69233123,236.61,236.45,3.02]
[1733496482388,19.05938524,236.6,236.45,3.02]
[1733496482589,16.24102959,236.63,236.45,3.02]
[1733496482783,7.93835684,236.62,236.45,3.02]
[1733496482986,16.24102959,236.67,236.46,16.24102959]
[1733496483189,19.69614632,236.66,236.46,16.24102959]
[1733496483386,19.69614632,236.65,236.46,16.24102959]
[1733496483581,7.93722033,236.64,236.46,16.24102959]
[1733496483796,3.02,236.69,236.46,16.24102959]
[1733496484095,27.36453479,236.68,236.46,16.24102959]
[1733496484394,19.69563159,236.67,236.46,16.24102959]
[1733496484589,7.9369735,236.66,236.46,16.24102959]
[1733496484791,7.9369735,236.65,236.5,16.24102959]
[1733496484989,1.2773,236.72,236.5,16.24102959]
[1733496485192,27.35742772,236.71,236.5,16.24102959]
[1733496485486,27.35653753,236.7,236.46,16.24102959]
[1733496485683,16.24102959,236.67,236.46,16.24102959]
[1733496485886,7.93502939,236.66,236.46,16.24102959]
[1733496486086,16.24102959,236.71,236.5,16.24102959]
[1733496486283,19.05440802,236.7,236.5,16.24102959]
[1733496486483,19.05440802,236.7,236.54,16.24102959]
[1733496486689,19.26102959,236.75,236.54,16.24102959]
[1733496486690,7.93315209,236.69,236.55,7.0067]
[1733496486892,19.26102959,236.75,236.55,7.0067]
[1733496487087,27.34677761,236.74,236.55,7.0067]
[1733496487290,19.68287323,236.73,236.55,7.0067]
[1733496487486,19.68287323,236.72,236.55,7.0067]
[1733496487694,7.93140575,236.71,236.55,7.0067]
[1733496487894,7.93140575,236.7,236.55,7.0067]
[1733496488095,16.24102959,236.75,236.55,7.0067]
[1733496488294,19.67543255,236.74,236.55,7.0067]
[1733496488488,19.67543255,236.73,236.55,3.9867]
[1733496488693,19.67543255,236.72,236.56,3.02]
[1733496488893,8.56092992,236.71,236.56,3.02]
[1733496489192,18.35208959,236.8,236.58,16.24102959]
[1733496489387,27.32078546,236.79,236.58,16.24102959]
[1733496489589,19.0307027,236.78,236.58,16.24102959]
[1733496489794,19.0307027,236.78,236.56,3.02]
[1733496489795,7.92087654,236.77,236.62,16.24102959]
[1733496489996,0.63245772,236.77,236.63,3.02]
[1733496490190,2.11106,236.8,236.63,3.02]
[1733496490593,0.6324055,236.79,236.63,3.02]
[1733496490798,2.11106,236.8,236.63,3.02]
[1733496491189,0.63233523,236.79,236.63,3.02]
[1733496491594,2.11106,236.8,236.63,3.02]
[1733496494395,2.11106,236.8,236.64,3.02]
[1733496494901,2.11106,236.8,236.65,1.3366]
[1733496495296,2.11106,236.8,236.66,2.6475]
[1733496495802,2.11106,236.8,236.66,18.88852959]
[1733496496997,2.11106,236.8,236.66,2.6475]
[1733496498595,2.11106,236.8,236.7,16.24102959]
[1733496498798,2.11106,236.8,236.71,3.02]
[1733496498996,0.01896,236.8,236.71,3.02]
[1733496499194,0.63200088,236.92,236.75,16.24102959]
[1733496499401,16.24102959,236.99,236.76,1.29]
[1733496499607,16.24102959,236.99,236.77,1.2941]
[1733496499608,0.63190418,236.98,236.77,1.2941]
[1733496499903,16.24102959,236.95,236.78,3.02]
[1733496500196,16.24102959,236.99,236.78,3.02]
[1733496500398,0.63184642,236.98,236.78,3.02]
[1733496501698,0.63184642,236.98,236.79,16.24102959]
[1733496501904,1.9116,237.07,236.79,16.24102959]
[1733496501905,16.24102959,237.02,236.79,16.24102959]
[1733496502102,0.63178563,237.01,236.79,16.24102959]
[1733496502801,16.24102959,236.98,236.78,3.02]
[1733496503001,0.63178563,236.97,236.78,3.02]
[1733496503201,0.63179424,237.05,236.95,16.24102959]
[1733496503500,0.63179424,237.05,236.96,2.96]
[1733496503701,0.63179424,237.05,236.99,16.24102959]
[1733496504307,0.63179424,237.05,237.0,2.96]
[1733496504601,16.24102959,237.18,236.96,1.3256]
[1733496504804,16.24102959,237.14,236.97,2.96]
[1733496505004,1.2682,237.17,236.97,2.96]
[1733496505408,16.24102959,237.18,236.97,2.96]
[1733496505599,20.46922959,237.22,236.99,16.24102959]
[1733496505804,20.46922959,237.22,237.0,2.96]
[1733496506105,20.46922959,237.22,237.0,4.2731]
[1733496506403,17.50922959,237.22,237.0,4.2731]
[1733496507007,16.24102959,237.22,237.0,4.2731]
[1733496507915,3.17139,237.17,237.03,16.24102959]
[1733496508310,3.17139,237.17,237.04,1.341]
[1733496510004,3.17139,237.17,237.05,2.96]
[1733496510209,3.17139,237.17,237.04,1.341]
[1733496510405,3.17139,237.17,237.0,4.2731]
[1733496511613,3.17139,237.17,237.02,16.24102959]
[1733496511915,3.17139,237.17,237.03,2.96]
[1733496513112,16.24102959,237.11,236.91,2.96]
[1733496513315,1.3718,237.1,236.91,1.3874]
[1733496513507,1.3718,237.1,236.93,3.24]
[1733496514308,2.6474,237.1,236.93,3.24]
[1733496514611,2.6474,237.1,236.88,16.24102959]
[1733496514612,16.24102959,237.03,236.83,3.24]
[1733496514814,16.24102959,236.99,236.79,3.24]
[1733496515113,3.24,236.99,236.81,16.24102959]
[1733496515512,3.24,236.99,236.82,1.2774]
[1733496516613,3.24,237.05,236.85,16.24102959]
[1733496516818,16.24102959,237.03,236.86,3.24]
[1733496518223,16.24102959,237.03,236.82,1.2774]
[1733496518412,1.2657,237.09,236.83,3.24]
[1733496518413,16.24102959,236.99,236.83,3.24]
[1733496518614,3.24,236.98,236.83,3.24]
[1733496518812,16.24102959,237.03,236.83,3.24]
[1733496519016,16.24102959,236.99,236.82,1.2774]
[1733496519221,19.70102959,236.99,236.82,1.2774]
[1733496519518,1.2657,237.09,236.82,1.2774]
[1733496519519,16.24102959,237.03,236.82,1.2774]
[1733496520123,16.24102959,237.03,236.83,16.24102959]
[1733496520617,3.46,237.04,236.83,16.24102959]
[1733496521025,16.24102959,237.07,236.83,16.24102959]
[1733496521223,19.70102959,237.07,236.83,16.24102959]
[1733496522026,16.24102959,237.07,236.83,16.24102959]
[1733496522327,16.24102959,237.07,236.84,0.77508359]
[1733496522527,16.24102959,237.07,236.85,3.46]
[1733496523523,4.40562096,237.37,236.85,3.46]
[1733496523524,43.88,237.48,237.02,16.24102959]
[1733496523728,1.3637,237.25,237.03,6.0684]
[1733496523929,1.3637,237.25,237.03,7.361]
[1733496524627,1.3637,237.25,237.06,16.24102959]
[1733496525029,1.3637,237.25,237.07,16.37747984]
[1733496528235,1.3637,237.25,237.06,16.37747984]
[1733496528631,1.3637,237.25,237.1,16.37747984]
[1733496528832,1.3637,237.25,237.11,3.46]
[1733496531331,1.3637,237.25,237.06,16.37747984]
[1733496531537,1.3637,237.25,237.07,3.46]
[1733496531538,1.2768,237.24,237.07,3.46]
[1733496532440,16.37747984,237.23,237.07,3.46]
[1733496534037,1.2768,237.24,237.07,3.46]
[1733496535548,1.39733,237.29,237.09,16.37747984]
[1733496535742,2.5382,237.28,237.09,16.37747984]
[1733496536137,2.5382,237.28,237.1,3.46]
[1733496536545,16.37747984,237.25,237.1,3.46]
[1733496538444,2.5382,237.28,237.1,3.46]
[1733496538943,3.46,237.45,237.16,16.37747984]
[1733496539149,1.2712,237.35,237.17,4.7788]
[1733496539550,1.2712,237.35,237.17,6.1652]
[1733496539947,1.2712,237.35,237.17,7.4246]
[1733496540650,1.277,237.34,237.17,7.4246]
[1733496541247,1.2712,237.35,237.17,7.4246]
[1733496543355,16.37747984,237.41,237.21,16.37747984]
[1733496543846,16.37747984,237.37,237.17,23.80207984]
[1733496544254,16.37747984,237.37,237.18,3.46]
[1733496544646,16.37747984,237.37,237.17,20.34207984]
[1733496544647,16.37747984,237.37,237.17,3.9646]
[1733496544952,16.37747984,237.33,237.18,3.46]
[1733496545548,16.37747984,237.29,237.17,1.3188]
[1733496545749,16.37747984,237.29,237.16,3.46]
[1733496546348,1.2653,237.28,237.16,3.46]
[1733496547855,1.2653,237.28,237.1,2.6343]
[1733496548057,1.2653,237.28,237.11,3.46]
[1733496550050,7.8666853,237.27,237.11,3.46]
[1733496550350,1.2653,237.28,237.11,3.46]
[1733496550660,7.86657005,237.27,237.11,3.46]
[1733496550854,1.2653,237.28,237.11,3.46]
[1733496551463,1.2653,237.28,237.13,16.37747984]
[1733496551951,1.2653,237.28,237.11,3.46]
[1733496552261,10.23617503,237.26,237.11,3.46]
[1733496552458,10.23617503,237.26,237.1,12.87047503]
[1733496552459,10.23617503,237.23,237.1,2.6343]
[1733496552849,10.23617503,237.23,237.1,12.87047503]
[1733496553359,10.23617503,237.23,237.1,11.53887503]
[1733496553550,10.23617503,237.23,237.03,1.2698]
[1733496553757,10.23617503,237.2,237.03,1.2698]
[1733496553958,10.23617503,237.24,237.03,4.6298]
[1733496553959,10.23617503,237.17,237.03,4.6298]
[1733496554459,10.23617503,237.14,237.01,1.3724]
[1733496554858,10.23617503,237.14,236.98,3.36]
[1733496555057,1.2687,237.15,237.02,10.23617503]
[1733496555560,1.3076,237.16,237.05,10.23617503]
[1733496555857,10.23617503,237.23,237.05,13.59617503]
[1733496556062,19.74000367,237.26,237.06,16.38000367]
[1733496556267,7.86681358,237.25,237.06,19.09910367]
[1733496556455,16.38000367,237.26,237.06,19.09910367]
[1733496556860,16.38000367,237.26,237.07,1.309]
[1733496557261,3.36,237.28,237.1,16.38000367]
[1733496557455,7.86471547,237.27,237.1,16.38000367]
[1733496557767,3.36,237.28,237.1,16.38000367]
[1733496558364,16.38000367,237.3,237.1,16.38000367]
[1733496558558,7.86484057,237.29,237.1,16.38000367]
[1733496558757,16.38000367,237.3,237.1,16.38000367]
[1733496560660,3.8955,237.34,237.1,16.38000367]
[1733496560860,7.86794351,237.33,237.1,16.38000367]
[1733496561164,3.8955,237.34,237.1,16.38000367]
[1733496561364,18.9158606,237.33,237.14,16.38000367]
[1733496561560,7.87194545,237.32,237.15,3.36]
[1733496561762,16.38000367,237.36,237.16,1.3618]
[1733496561966,18.9155724,237.35,237.16,1.3618]
[1733496562265,18.9155724,237.34,237.16,1.3618]
[1733496562467,7.87153092,237.33,237.16,1.3618]
[1733496562764,16.38000367,237.36,237.16,1.3618]
[1733496562765,16.38000367,237.3,237.16,1.3618]
[1733496563356,7.8822838,237.29,237.16,1.3618]
[1733496563562,7.8822838,237.28,237.16,1.3618]
[1733496563765,16.38000367,237.3,237.16,1.3618]
[1733496563959,7.88280569,237.29,237.16,1.3618]
[1733496564160,16.38000367,237.36,237.16,1.3618]
[1733496564357,26.56011974,237.35,237.16,1.3618]
[1733496564557,18.93979012,237.34,237.16,1.3618]
[1733496564866,18.93979012,237.33,237.16,1.3618]
[1733496565065,18.93979012,237.32,237.17,1.3636]
[1733496565263,16.38000367,237.36,237.18,1.3419]
[1733496565455,26.60768191,237.35,237.18,1.3419]
[1733496565655,18.97368378,237.34,237.18,1.3419]
[1733496565861,18.97368378,237.33,237.18,1.3419]
[1733496566162,18.97368378,237.32,237.18,1.3419]
[1733496566361,7.89590924,237.31,237.18,1.3419]
[1733496566561,16.38000367,237.36,237.18,17.72190367]
[1733496566864,18.98415459,237.35,237.18,17.72190367]
[1733496567064,18.98415459,237.34,237.18,17.72190367]
[1733496567265,7.90014797,237.33,237.18,17.72190367]
[1733496567457,7.90014797,237.32,237.18,17.72190367]
[1733496567654,18.93410367,237.4,237.18,17.72190367]
[1733496567861,26.6337294,237.39,237.18,17.72190367]
[1733496568060,26.6337294,237.38,237.18,17.72190367]
[1733496568255,26.6337294,237.37,237.18,17.72190367]
[1733496568461,18.99223094,237.36,237.22,16.38000367]
[1733496568663,7.90348099,237.35,237.23,3.36]
[1733496568862,1.2841,237.4,237.23,3.36]
[1733496569061,18.99953817,237.39,237.23,3.36]
[1733496569262,18.99953817,237.38,237.23,3.36]
[1733496569462,7.90628361,237.37,237.23,3.36]
[1733496569661,1.2841,237.4,237.23,3.36]
[1733496569861,18.98943353,237.39,237.23,3.36]
[1733496570066,7.90201394,237.38,237.23,3.36]
[1733496570270,16.38000367,237.44,237.23,3.36]
[1733496570464,27.97885696,237.43,237.23,3.36]
[1733496570665,16.38000367,237.4,237.23,3.36]
[1733496570864,18.98142802,237.39,237.23,3.36]
[1733496571060,1.3602,237.43,237.17,1.3636]
[1733496571061,16.38000367,237.32,237.17,1.3636]
[1733496571267,18.98473491,237.31,237.17,1.3636]
[1733496571563,7.90051255,237.3,237.17,1.3636]
[1733496571765,16.38000367,237.32,237.17,1.3636]
[1733496572067,18.9842771,237.31,237.15,3.36]
[1733496572259,18.9842771,237.3,237.13,3.36]
[1733496572461,7.90034904,237.29,237.13,3.36]
[1733496572665,4.7163,237.31,237.14,3.36]
[1733496572857,7.90076711,237.3,237.14,3.36]
[1733496573067,7.90076711,237.29,237.14,3.36]
[1733496573261,7.90076711,237.3,237.14,3.36]
[1733496573467,16.38000367,237.28,237.14,3.36]
[1733496573768,16.38000367,237.24,237.09,3.36]
[1733496573963,16.38000367,237.28,237.09,6.0001]
[1733496574264,16.38000367,237.24,237.09,6.0001]
[1733496574569,18.98987196,237.23,237.09,6.0001]
[1733496574869,7.90310599,237.22,237.09,6.0001]
[1733496575067,7.90310599,237.21,237.09,6.0001]
[1733496575367,19.74000367,237.24,237.09,6.0001]
[1733496575566,18.99238581,237.23,237.09,6.0001]
[1733496575757,7.9041649,237.22,237.09,6.0001]
[1733496575959,16.38000367,237.2,237.04,3.36]
[1733496576159,16.38000367,237.2,237.04,1.3607]
[1733496576160,18.9938621,237.19,237.04,1.3607]
[1733496576359,7.9041649,237.18,237.04,1.3607]
[1733496576565,9.2576649,237.19,237.04,1.3607]
[1733496576759,18.99363782,237.18,237.04,1.3607]
[1733496576966,16.38000367,237.15,237.01,1.2794]
[1733496577265,18.99457808,237.14,236.96,3.36]
[1733496577465,7.90625032,237.13,236.96,3.36]
[1733496577663,7.90625032,237.12,236.96,3.36]
[1733496577858,7.90575951,237.11,236.96,3.36]
[1733496578068,3.36,237.14,236.96,3.36]
[1733496578261,16.38000367,237.15,236.97,1.3737]
[1733496578262,7.90561967,237.13,236.97,1.3737]
[1733496578466,16.38000367,237.15,236.97,2.6983]
[1733496578667,4.6398,237.17,236.97,2.6983]
[1733496578961,7.90203862,237.16,236.97,2.6983]
[1733496579161,4.6398,237.17,236.97,2.6983]
[1733496579371,7.90035121,237.16,236.97,2.6983]
[1733496579664,4.6398,237.17,236.97,2.6983]
[1733496580170,7.90010568,237.16,236.97,2.6983]
[1733496580368,3.36,237.17,237.0,16.38000367]
[1733496580567,1.2703,237.18,237.0,16.38000367]
[1733496580769,7.89842638,237.17,237.0,16.38000367]
[1733496580969,1.2703,237.18,237.0,16.38000367]
[1733496581368,1.3535,237.19,237.0,16.38000367]
[1733496583177,19.66000367,237.23,237.04,16.38000367]
[1733496583370,16.38000367,237.23,237.05,4.613]
[1733496583569,3.28,237.26,237.05,4.613]
[1733496583769,7.89463585,237.25,237.05,4.613]
[1733496583969,16.38000367,237.27,237.05,4.613]
[1733496584170,18.96923002,237.26,237.05,4.613]
[1733496584475,7.8945137,237.25,237.05,4.613]
[1733496584672,7.8945137,237.24,237.05,4.613]
[1733496584874,19.66000367,237.27,237.05,4.613]
[1733496585075,18.97054632,237.26,237.05,4.613]
[1733496585274,18.97054632,237.25,237.05,4.613]
[1733496585477,7.89504031,237.24,237.05,4.613]
[1733496585672,19.66000367,237.27,237.05,4.613]
[1733496585872,18.97141611,237.26,237.08,16.38000367]
[1733496586177,1.2772,237.3,237.09,2.7438]
[1733496586379,18.97105063,237.29,237.12,16.38000367]
[1733496586571,1.2772,237.3,237.13,3.28]
[1733496586572,7.89502571,237.28,237.13,3.28]
[1733496586878,1.2772,237.3,237.13,3.28]
[1733496587075,7.89412572,237.29,237.13,3.28]
[1733496587275,7.89412572,237.28,237.13,3.28]
[1733496587477,1.2772,237.3,237.13,3.28]
[1733496587773,7.89443228,237.29,237.13,3.28]
[1733496587980,16.38000367,237.31,237.13,3.28]
[1733496588276,7.89405511,237.3,237.13,3.28]
[1733496588477,16.38000367,237.31,237.13,3.28]
[1733496588680,16.38000367,237.35,237.13,3.28]
[1733496588876,18.96714215,237.34,237.13,3.28]
[1733496589083,18.96713954,237.33,237.13,3.28]
[1733496589384,7.8930682,237.32,237.13,3.28]
[1733496589586,16.38000367,237.35,237.13,3.28]
[1733496589878,18.96747032,237.34,237.13,3.28]
[1733496590084,18.96747032,237.33,237.13,3.28]
[1733496590584,7.8932198,237.32,237.13,3.28]
[1733496590882,16.38000367,237.35,237.16,16.38000367]
[1733496591079,18.96633628,237.34,237.17,1.3262]
[1733496591384,18.96633628,237.33,237.17,1.3262]
[1733496591577,7.89281718,237.32,237.17,1.3262]
[1733496591774,16.38000367,237.35,237.17,1.3262]
[1733496591980,18.96519435,237.34,237.17,1.3262]
[1733496592180,18.96526759,237.33,237.17,1.3262]
[1733496592376,7.89230085,237.32,237.17,1.3262]
[1733496592581,16.38000367,237.35,237.17,1.3262]
[1733496592782,18.96380602,237.34,237.17,1.3262]
[1733496592975,18.96380602,237.33,237.17,1.3262]
[1733496593182,3.28,237.37,237.17,1.3262]
[1733496593381,18.96032452,237.36,237.17,1.3262]
[1733496593584,18.96032452,237.35,237.17,1.3262]
[1733496593785,7.89019466,237.34,237.17,1.3262]
[1733496594084,3.28,237.37,237.17,1.3262]
[1733496594285,18.95886608,237.36,237.17,1.3262]
[1733496594483,18.95886608,237.35,237.17,1.3262]
[1733496594687,7.89021648,237.34,237.17,1.3262]
[1733496594884,16.38000367,237.39,237.17,1.3262]
[1733496595080,18.95711953,237.38,237.17,1.3262]
[1733496595285,18.95711953,237.37,237.17,1.3262]
[1733496595481,7.88880821,237.36,237.17,1.3262]
[1733496595682,7.88880821,237.35,237.17,1.3262]
[1733496595985,16.38000367,237.39,237.17,1.3262]
[1733496596184,18.95361985,237.38,237.17,1.3262]
[1733496596386,18.95361985,237.37,237.17,1.3262]
[1733496596587,18.95361985,237.36,237.17,1.3262]
[1733496596784,7.88728474,237.35,237.17,1.3262]
[1733496596978,7.88663688,237.34,237.17,1.3262]
[1733496597179,16.38000367,237.39,237.17,1.3262]
[1733496597389,16.38000367,237.35,237.18,3.26]
[1733496597688,26.03220328,237.34,237.18,3.26]
[1733496597890,7.8860681,237.33,237.18,3.26]
[1733496599184,7.8860681,237.33,237.19,1.3456]
[1733496599784,3.8218,237.34,237.19,1.3456]
[1733496600089,1.2702,237.34,237.19,1.3456]
[1733496600289,1.2702,237.34,237.2,1.2699]
[1733496600692,16.36283328,237.42,237.21,16.36283328]
[1733496600895,26.5886731,237.41,237.21,16.36283328]
[1733496601084,18.96006368,237.4,237.21,16.36283328]
[1733496601284,7.8898854,237.39,237.21,16.36283328]
[1733496601490,16.36283328,237.44,237.21,16.36283328]
[1733496601793,26.58204667,237.43,237.21,16.36283328]
[1733496601986,18.9553461,237.42,237.21,16.36283328]
[1733496602286,18.9553461,237.41,237.21,16.36283328]
[1733496602487,18.9553461,237.4,237.21,16.36283328]
[1733496602693,7.88780913,237.39,237.21,16.36283328]
[1733496602884,16.36283328,237.44,237.21,16.36283328]
[1733496603091,26.57685675,237.43,237.21,16.36283328]
[1733496603291,18.95161786,237.42,237.21,16.36283328]
[1733496603592,18.95161786,237.41,237.21,16.36283328]
[1733496603893,24.24908213,237.4,237.2,1.2699]
[1733496604088,18.94937855,237.39,237.2,1.2699]
[1733496604292,18.94937855,237.38,237.2,1.2699]
[1733496604503,7.88624885,237.37,237.2,1.2699]
[1733496604802,16.36283328,237.4,237.21,16.36283328]
[1733496605003,18.94563802,237.39,237.21,16.36283328]
[1733496605204,18.94563802,237.38,237.21,16.36283328]
[1733496605405,7.88397254,237.37,237.21,16.36283328]
[1733496605700,7.88336801,237.36,237.22,3.08]
[1733496605902,16.36283328,237.4,237.22,3.08]
[1733496606096,18.94484016,237.39,237.22,3.08]
[1733496606296,18.94484016,237.38,237.22,3.08]
[1733496606497,18.94484016,237.37,237.22,3.08]
[1733496606699,24.24643593,237.36,237.22,3.08]
[1733496606898,21.48713377,237.35,237.22,3.08]
[1733496607104,18.94483377,237.34,237.2,3.08]
[1733496607405,7.88360265,237.33,237.2,3.08]
[1733496607705,18.94510806,237.33,237.2,3.08]
[1733496607906,24.24643593,237.32,237.13,16.36283328]
[1733496608108,10.23224615,237.29,237.17,3.08]
[1733496608597,4.3986,237.34,237.14,3.08]
[1733496608598,10.23224615,237.26,237.14,3.08]
[1733496609001,4.3986,237.34,237.14,13.31224615]
[1733496609209,4.3986,237.34,237.17,10.23224615]
[1733496609210,10.23224615,237.31,237.17,10.23224615]
[1733496609604,10.22970633,237.32,237.17,10.22970633]
[1733496609799,7.88477824,237.31,237.17,10.22970633]
[1733496610006,7.88477824,237.31,237.14,3.08]
[1733496610007,16.3692507,237.33,237.14,3.08]
[1733496610205,7.885176,237.32,237.14,3.08]
[1733496610400,7.885176,237.31,237.14,3.08]
[1733496610605,16.3692507,237.29,237.14,3.08]
[1733496610805,7.88493198,237.28,237.14,3.08]
[1733496611102,3.08,237.27,237.14,3.08]
[1733496611998,16.3692507,237.25,237.09,3.08]
[1733496612201,2.5492,237.24,237.09,3.08]
[1733496613806,16.3692507,237.21,237.0,16.3692507]
[1733496614010,16.3692507,237.17,236.98,3.08]
[1733496614308,16.3692507,237.13,236.96,16.3692507]
[1733496614502,2.551,237.12,236.96,16.3692507]
[1733496615003,1.3413,237.23,237.04,16.3692507]
[1733496615204,21.50026078,237.22,237.05,3.08]
[1733496615505,18.95029414,237.21,237.05,3.08]
[1733496615705,7.88705295,237.2,237.05,3.08]
[1733496615899,3.08,237.2,237.05,3.08]
[1733496616299,19.4492507,237.2,237.05,3.08]
[1733496616500,7.88692659,237.19,237.0,16.3692507]
[1733496616701,19.4492507,237.2,237.01,3.08]
[1733496617308,7.88576096,237.19,237.01,3.08]
[1733496617508,19.4492507,237.2,237.01,3.08]
[1733496617709,16.3692507,237.16,237.01,3.08]
[1733496617909,7.88718601,237.15,236.96,19.4492507]
[1733496618106,16.3692507,237.16,236.96,19.4492507]
[1733496620104,3.08,237.2,236.96,3.08]
[1733496620105,16.3692507,237.12,236.96,3.08]
[1733496620310,6.9308,237.11,236.96,3.08]
[1733496620805,6.9308,237.11,236.94,3.08]
[1733496621711,16.3692507,237.08,236.9,1.2756]
[1733496622003,16.3692507,237.08,236.88,16.3692507]
[1733496622211,16.3692507,237.04,236.84,16.3692507]
[1733496622407,19.4492507,237.04,236.85,3.08]
[1733496623203,16.3692507,237.0,236.8,16.3692507]
[1733496623405,3.8345,236.99,236.81,3.08]
[1733496623803,16.3692507,236.96,236.81,3.08]
[1733496624006,16.3692507,236.96,236.76,16.3692507]
[1733496624007,3.08,236.95,236.76,16.3692507]
[1733496624211,3.08,236.95,236.79,3.08]
[1733496624412,16.3692507,236.96,236.79,3.08]
[1733496624615,3.08,236.95,236.79,3.08]
[1733496625609,16.3692507,236.96,236.79,3.08]
[1733496625812,19.4492507,236.96,236.79,3.08]
[1733496626506,16.3692507,236.92,236.79,3.08]
[1733496627111,16.3692507,236.92,236.76,3.08]
[1733496627313,16.3692507,236.88,236.68,16.3692507]
[1733496627514,6.9556,236.87,236.69,3.08]
[1733496627905,6.9556,236.87,236.68,16.3692507]
[1733496628105,16.3692507,236.84,236.69,3.08]
[1733496628815,16.3692507,236.8,236.66,2.5402]
[1733496630015,3.08,236.86,236.68,16.3692507]
[1733496630609,3.8756,236.87,236.68,16.3692507]
[1733496630807,3.8756,236.87,236.67,1.3352]
[1733496630808,3.08,236.93,236.67,1.3352]
[1733496631012,16.3692507,236.91,236.72,16.3692507]
[1733496631219,16.3692507,236.91,236.73,3.08]
[1733496632519,16.3692507,236.87,236.73,3.08]
[1733496632717,1.331,236.86,236.73,3.08]
[1733496632918,1.2567,236.92,236.76,16.3692507]
[1733496634317,1.2567,236.92,236.73,3.08]
[1733496634519,1.2567,236.92,236.76,16.3692507]
[1733496634719,1.331,236.98,236.84,16.3692507]
[1733496635018,1.331,236.98,236.85,2.96]
[1733496635517,4.291,236.98,236.85,2.96]
[1733496635724,16.3692507,236.95,236.79,2.96]
[1733496637028,16.3692507,236.95,236.77,1.3517]
[1733496637221,16.3692507,236.91,236.74,2.96]
[1733496637425,16.3692507,236.87,236.68,16.3692507]
[1733496637627,16.3692507,236.87,236.72,2.96]
[1733496638623,1.271,236.86,236.72,2.96]
[1733496641024,2.96,236.9,236.72,19.3292507]
[1733496641324,16.3692507,236.95,236.76,16.3692507]
[1733496641520,4.2319,236.97,236.77,1.3732]
[1733496642827,4.2319,236.97,236.8,16.3692507]
[1733496643028,16.3692507,237.03,236.84,16.3692507]
[1733496643226,16.3692507,237.03,236.85,2.7107]
[1733496643429,16.3692507,237.07,236.85,2.7107]
[1733496643727,16.3692507,237.07,236.88,16.3692507]
[1733496643925,16.3692507,237.07,236.89,4.2794]